{"text_format":"3","workbook":"xlsx","n_sheets":1,"sheets":["Bid Schedule 2223-49MJ"],"not_rendered":{"defined_names":2},"read":"whole","date_system":"1900"}

{"sheet":"Bid Schedule 2223-49MJ","index":0,"n_rows":108,"n_cols":12,"rows_kept":108,"merged":[[1,2,1,8],[2,2,2,8],[90,1,90,8],[90,14,90,19],[92,1,92,5],[93,1,93,2],[97,1,97,2],[98,1,98,2],[100,1,100,5],[103,1,103,5],[106,1,106,5]]}
[null,"VIII.BIDDING SCHEDULE"]
[null,"Name of Offeror as identified on the cover page:"]
[null,"Authorized Signature:"]
[{"$nulls":6},"Multiplier ",null,null,"Multiplier "]
[{"$nulls":6},12,null,null,12]
["Item","School","Address"," Annual Fee Test  & Inspection",null,"Monthly Monitoring Fee","Total Extended Price for Monthly Monitoring Fee",null,"Monthly Maintenance /Service Parts & Labor ","Total Extended Price for Monthly Mainteance/Services Parts  & Labor",null," Total Extended Price                  (Column C + F + I)"]
[1,"Acad. for Arts, Sci.,Tech","700 Gardner Lacy Road",{"$nulls":3},{"$f":"SUM(F7*$G$5)","v":0},null,null,{"$f":"SUM(I7*$G$5)","v":0},null,{"$f":"SUM(D7,G7,J7)","v":0}]
[2,"Acad. for Tech. & Acad.","5639 Hwy 701, N",{"$nulls":3},0,null,null,{"$f":"SUM(I8*$G$5)","v":0},null,{"$f":"SUM(D8,G8,J8)","v":0}]
[3,"Aynor Elementary","516 Jordanville Road",{"$nulls":3},0,null,null,0,null,0]
[4,"Aynor High School","201 Jordanville Road",{"$nulls":3},0,null,null,0,null,0]
[5," Aynor High Concession","201 Jordanville Road",{"$nulls":3},0,null,null,0,null,0]
[6,"Aynor High Field House ","201 Jordanville Road",{"$nulls":3},0,null,null,0,null,0]
[7,"Aynor Middle","400 Frye Road",{"$nulls":3},0,null,null,0,null,0]
[8,"Black Water Middle","900 East Cox Ferry Road",{"$nulls":3},0,null,null,0,null,0]
[9,"Burgess Elementary","9645 Scipio Lane",{"$nulls":3},0,null,null,0,null,0]
[10,"Carolina Forest Concession","700 Gardner Lacy Road.",{"$nulls":3},0,null,null,0,null,0]
[11,"Carolina Forest Elem","285 Carolina Forest Blvd.",{"$nulls":3},0,null,null,0,null,0]
[12,"Carolina Forest High","700 Gardner Lacy Road",{"$nulls":3},0,null,null,0,null,0]
[13,"Carolina Forest Bus Portable","700 Gardner Lacy Road",{"$nulls":3},0,null,null,0,null,0]
[14," Ten Oaks Middle","150 Revolutionary War Way",{"$nulls":3},0,null,null,0,null,0]
[15,"Carolina Forest Sports Facility","700 Gardner Lacy Road.",{"$nulls":3},0,null,null,0,null,0]
[16,"Conway Elementary    ","1101 Snowhill Drive",{"$nulls":3},0,null,null,0,null,0]
[17,"Conway High    ","2301 Church Street",{"$nulls":3},0,null,null,0,null,0]
[18,"Conway High Field House","2301 Church Street",{"$nulls":3},0,null,null,0,null,0]
[19,"Conway Middle","1104 Elm Street",{"$nulls":3},0,null,null,0,null,0]
[20,"Daisy Elementary","2801 Red Bluff Road",{"$nulls":3},0,null,null,0,null,0]
[21,"District Office       ","335 Four Mile Road",{"$nulls":3},0,null,null,0,null,0]
[22,"Doug Shaw Sports Facility",{"$nulls":4},0,null,null,0,null,0]
[23,"Early College- Bldg 300","2050 Hwy 501",{"$nulls":3},0,null,null,0,null,0]
[24,"Forestbrook Elementary","4000 Panthers Parkway",{"$nulls":3},0,null,null,0,null,0]
[25,"Forestbrook Middle","4430 Gator Lane",{"$nulls":3},0,null,null,0,null,0]
[26,"Green Sea Floyds Concession",{"$nulls":4},0,null,null,0,null,0]
[27,"Green Sea Floyds Elem","5000 Tulip Grove Road",{"$nulls":3},0,null,null,0,null,0]
[28,"Green Sea Floyds High School","4990 Tulip Grove Road",{"$nulls":3},0,null,null,0,null,0]
[29,"Green Sea Floyds Sports Facility",{"$nulls":4},0,null,null,0,null,0]
[30,"HCS Bus Maintenance Shop","1160 E Hwy 501",{"$nulls":3},0,null,null,0,null,0]
[31,"HCS Facilities Bldg","1160 E Hwy 501",{"$nulls":3},0,null,null,0,null,0]
[32,"HCS Records Bldg","2205 Church Street",{"$nulls":3},0,null,null,0,null,0]
[33,"Homewood Elementary","108 N. Clemson Circle",{"$nulls":3},0,null,null,0,null,0]
[34,"Horry County Educ Center","2694 Highway 905",{"$nulls":3},0,null,null,0,null,0]
[35,"Kingston Elementary","4580 Highway 472",{"$nulls":3},0,null,null,0,null,0]
[36,"Lakewood Elementary","1675 Highway 396",{"$nulls":3},0,null,null,0,null,0]
[37,"Loris Elementary","901 Highway 9 Bus., E.",{"$nulls":3},0,null,null,0,null,0]
[38,"Loris High School","301 Loris Lions Road",{"$nulls":3},0,null,null,0,null,0]
[39,"Loris High School Concession","301 Loris Lions Road",{"$nulls":3},0,null,null,0,null,0]
[40,"Loris High School Sports Facility","301 Loris Lions Road",{"$nulls":3},0,null,null,0,null,0]
[41,"Loris Middle","5209 Highway 66",{"$nulls":3},0,null,null,0,null,0]
[42,"Midland Elementary","3011 Nichols Highway",{"$nulls":3},0,null,null,0,null,0]
[43,"Myrtle Beach Primary","620 29th Avenue, N.",{"$nulls":3},0,null,null,0,null,0]
[44,"Myrtle Beach High","3302 Robert Grissom Pkwy",{"$nulls":3},0,null,null,0,null,0]
[45,"Myrtle Beach Intermidiate","3301 Oak Street",{"$nulls":3},0,null,null,0,null,0]
[46,"Myrtle Beach Elementary ","950 Seahawk Way",{"$nulls":3},{"$f":"SUM(F52*$G$5)","v":0},null,0,null,null,0]
[47,"Myrtle Beach Middle","3101 Oak Street",{"$nulls":3},0,null,null,0,null,0]
[48,"Myrtle Beach Early Childhood","612 29th Ave., N.",{"$nulls":3},0,null,null,0,null,0]
[49,"N. Myrtle Beach High","3750 Sea Mountain Hwy",{"$nulls":3},0,null,null,0,null,0]
[50,"N. Myrtle Beach High Concession","3750 Sea Mountain Hwy",{"$nulls":3},0,null,null,0,null,0]
[51,"N. Myrtle Beach Facility/Field House","3750 Sea Mountain Hwy",{"$nulls":3},0,null,null,0,null,0]
[52,"N. Myrtle Beach Middle","11240 Highway 90",{"$nulls":3},0,null,null,0,null,0]
[53,"Ocean Bay Elementary","950 International Drive",{"$nulls":3},0,null,null,0,null,0]
[54,"Ocean Bay Middle","905 International Drive",{"$nulls":3},0,null,null,0,null,0]
[55,"Ocean Drive Elementary ","901 11th Ave., N.",{"$nulls":3},0,null,null,0,null,0]
[56,"Palmetto Bays Elem","8900 Highway 544",{"$nulls":3},0,null,null,0,null,0]
[57,"Pee Dee Elementary","6555 Highway 134",{"$nulls":3},0,null,null,0,null,0]
[58,"River Oaks Elementary","700 Augusta Plantation Drive",{"$nulls":3},0,null,null,0,null,0]
[59,"Riverside Elementary ","1283 Highway 57, S.",{"$nulls":3},0,null,null,0,null,0]
[60,"Scholars Academy (CCU)","104 Chanticleer Drive,",{"$nulls":3},0,null,null,0,null,0]
[61,"Seaside Elementary","1605 Woodland Drive",{"$nulls":3},0,null,null,0,null,0]
[62,"Socastee Annex","4950 Socastee Blvd.",{"$nulls":3},0,null,null,0,null,0]
[63,"Socastee Elementary ","4223  Socastee Blvd",{"$nulls":3},0,null,null,0,null,0]
[64,"Socastee High School","4900 Socastee Blvd",{"$nulls":3},0,null,null,0,null,0]
[65,"Socastee High Concession","4900 Socastee Blvd",{"$nulls":3},0,null,null,0,null,0]
[66,"Socastee High Sports Facility","4900 Socastee Blvd",{"$nulls":3},{"$f":"SUM(F72*$G$5)","v":0},null,null,{"$f":"SUM(I72*$G$5)","v":0},null,{"$f":"SUM(D72,G72,J72)","v":0}]
[67,"Socastee Middle New","151 Esso Road",{"$nulls":3},0,null,null,0,null,0]
[68,"South Conway Elem","3001 Fourth Ave.",{"$nulls":3},0,null,null,0,null,0]
[69,"St James Field House","10800 Highway 707",{"$nulls":3},0,null,null,0,null,0]
[70,"St. James Elementary","9711 St. James Rd.",{"$nulls":3},0,null,null,0,null,0]
[71,"St. James High","10800 Highway 707",{"$nulls":3},0,null,null,0,null,0]
[72,"St. James Intermediate ","9641 Scipio Lane",{"$nulls":3},0,null,null,0,null,0]
[73,"St. James Middle","9775 St. James Road",{"$nulls":3},0,null,null,0,null,0]
[74,"St. James Middle Bus Module","9743 St. James Road",{"$nulls":3},0,null,null,0,null,0]
[75,"Therapeutic Lrn Center / Conway Ed Ctr","1620 Sherwood Drive",{"$nulls":3},0,null,null,0,null,0]
[76,"Waccamaw Elementary","251 Claridy Road",{"$nulls":3},0,null,null,0,null,0]
[77,"Waterway Elementary ","700 Sandridge Road",{"$nulls":3},0,null,null,0,null,0]
[78,"Whittemore Park Middle","1808 Rhue Street",{"$nulls":3},0,null,null,0,null,0]
[79,"SOAR Academy","229 Old Dunn Lane",{"$nulls":3},0,null,null,0,null,0]
[{"$nulls":3},{"$f":"SUM(D7:D85)","v":0},null,null,{"$f":"SUM(G7:G85)","v":0},null,null,{"$f":"SUM(J7:J85)","v":0},"=",{"$f":"SUM(L7:L85)","v":0}]
[]
[{"$nulls":8},"      APPENDIX A SCENARIO",null,null,{"$f":"F102","v":0}]
[{"$nulls":8},"      APPENDIX B SCENARIO",null,null,{"$f":"F105","v":0}]
[{"$nulls":8},"      APPENDIX C SCENARIO",null,null,{"$f":"F108","v":0}]
[null,"Calculating The Low Bid: Highlighted Colums will be used for evaluation purposes in calculating the lowest bid. Grand total is to be provided on page 33 of the solicitation .",{"$nulls":7},"GRAND Total",null,{"$f":"SUM(L86:L88)","v":0}]
[]
[null,"SERVICE RATES FOR INFORMATION ONLY (For work required to be performed as a result of acts of nature, faulty wiring, vandalist, moves/adds/changes, ground, faults, battery replacement and upgrades to obsolete panels."]
["Item","Description",null,"Unit/Measure","Qty","Unit Price"]
[81,"Standard Working Hours","Regular Hours (7:00AM-5:00PM)","Hourly Rate",1]
[82,"Overtime Working Hours","Overtime Hours (5:00PM-7:00 am) &Sat and Sun","Hourly Rate",1]
[83,"Holiday Hours","Holiday Hours","Hourly Rate",1]
[84,"Mark-up Percent on actual cost for third-party material and components not to exceed 35%",null,"% ",1]
[85,"Discount Percent on manufacturer's equipment/material and components MSRP or list price",null,"%",1]
[]
["Item","APPENDIX A"]
[80,"Upgrade associated with the replace of 4 MAU's.  Lump Sum Bid shall include all work described within the specifications provided in Appendix A.  For the purpose of this sceneraio, include sales tax in total lump sum bid amount.","Lump Sum Bid",1]
[]
["Item","APPENDIX B"]
[81,"Repair fire alarm system as a result of damage due to an accident/issue during PE Class.  Lump Sum Bid shall include all work described within the specifications provided in Appendix B.  For the purpose of this sceneraio, include sales tax in total lump sum bid amount.","Lump Sum Bid",1]
[]
["Item","APPENDIX C"]
[83,"Repair fire alarm system ass a result of lightingng strike.  Lump Sum Bid shall include all work described within the specifications provided in Appendix C.  For the purpose of this sceneraio, include sales tax in total lump sum bid amount.","Lump Sum Bid",1]